Cogmind - Beta 13 @@@ ROGUE MODE // 2024.03.10 @ 04:44:01 Player: puppuppit Result: Destroyed by S-27 Virus with Autogun Performance ------------- Evolutions (3) 1500 Regions Visited (13) 2600 Robots Destroyed (189) 945 Value Destroyed (8830) 8830 Prototype IDs (49) 980 Alien Tech Used (0) 0 Bonus (1931) 1931 TOTAL SCORE: 16786 Bonus ------- High Alert Combat Kills 1280 Follower Combat Kills 147 Entered Garrisons 400 Aligned with FarCom 300 Friendly Fire -196 Cogmind --------- Core Integrity 0/700 Matter 220/300 Energy 294/300 System Corruption 20% Temperature Cool (0) Movement Hovering (30) Location -7/Lower Caves Parts ------- > --- POWER (1) -------- Enhanced Nuclear Core > --- PROPULSION (4) --- Cooled Airjet Cooled Airjet (fused) Cooled Airjet > --- UTILITY (6) ------ Small Storage Unit Experimental Sensor Array Target Analyzer Core Analyzer Hacking Suite Hacking Suite > --- WEAPON (2) ------- Precision Assault Rifle Precision Assault Rifle > --- INVENTORY (8) ---- Enhanced Nuclear Core Gravmag System High-capacity Matter Pod (0) Weapon Cycler Improved Propulsion Shielding Skeleton Box System Restoration Module Advanced Assault Cannon Peak State ------------ > --- POWER ------------ Enhanced Nuclear Core > --- PROPULSION ------- Cooled Airjet Cooled Airjet Cooled Airjet Cooled Airjet > --- UTILITY ---------- Small Storage Unit Experimental Sensor Array Target Analyzer Core Analyzer Hacking Suite Hacking Suite > --- WEAPON ----------- Precision Assault Rifle Precision Assault Rifle > --- INVENTORY -------- Enhanced Nuclear Core Gravmag System High-capacity Matter Pod Weapon Cycler Improved Propulsion Shielding Skeleton Box System Restoration Module Advanced Assault Cannon [Rating: 61] Favorites ----------- Power Light Nuclear Core Engine Light Ion Engine Power Core Light Nuclear Core Propulsion Improved VTOL Module Leg Aluminum Leg Wheel Wheel Hover Unit Cooled Airjet Flight Unit Improved VTOL Module Utility Hacking Suite Device Long-range Tractor Beam Storage Small Storage Unit Processor Machine Analyzer Hackware Hacking Suite Protection Improved Propulsion Shielding Weapon Light Assault Rifle Energy Gun Particle Gun Energy Cannon Beam Cannon Ballistic Gun Light Assault Rifle Ballistic Cannon Advanced Assault Cannon Launcher Heavy Missile Launcher Build | -11 -10 -10 -10 -9 -8 -8 -8 -8 -8 -7 -7 -7 -7 ------- Run | Yrd Mat Min Exi Min Mat Gar Mat Gar Mat Fac Was Fac Low Slots Evolved 6 | . . . . . 4 . . . . 2 . . . Power . | . . . . . . . . . . . . . . Propulsion 2 | . . . . . 2 . . . . . . . . Utility 4 | . . . . . 2 . . . . 2 . . . Weapon . | . . . . . . . . . . . . . . Parts Attached 235 | 9 17 3 . 10 20 19 15 19 19 92 . 12 . Power 31 | 1 1 . . 2 1 3 2 6 1 13 . 1 . Engine 11 | 1 1 . . 1 . 1 2 2 . 3 . . . Core 20 | . . . . 1 1 2 . 4 1 10 . 1 . Reactor . | . . . . . . . . . . . . . . Propulsion 85 | 3 9 2 . 6 7 1 8 4 5 38 . 2 . Treads . | . . . . . . . . . . . . . . Leg 2 | . . . . 2 . . . . . . . . . Wheel 8 | 3 . . . 2 . . . . . 3 . . . Hover 41 | . 5 . . . 3 1 2 . . 28 . 2 . Flight 34 | . 4 2 . 2 4 . 6 4 5 7 . . . Utility 55 | 3 2 . . . 4 5 2 4 5 24 . 6 . Device 19 | 2 . . . . 1 1 . 2 . 10 . 3 . Storage 4 | 1 . . . . . . . . 2 1 . . . Processor 12 | . 1 . . . . 3 . 1 2 4 . 1 . Hackware 12 | . 1 . . . 2 1 2 1 1 3 . 1 . Protection 8 | . . . . . 1 . . . . 6 . 1 . Artifact . | . . . . . . . . . . . . . . Weapon 64 | 2 5 1 . 2 8 10 3 5 8 17 . 3 . Energy Gun 4 | 1 . . . . 2 . . 1 . . . . . Energy Cannon 2 | . 2 . . . . . . . . . . . . Ballistic Gun 51 | 1 3 1 . 2 5 8 3 4 8 14 . 2 . Ballistic Cannon 2 | . . . . . . . . . . 2 . . . Launcher 5 | . . . . . 1 2 . . . 1 . 1 . Special Weapon . | . . . . . . . . . . . . . . Impact Weapon . | . . . . . . . . . . . . . . Slashing Weapon . | . . . . . . . . . . . . . . Piercing Weapon . | . . . . . . . . . . . . . . Special Melee Weapon . | . . . . . . . . . . . . . . Unidentified Prototypes 8 | . . . . . 3 . 1 . . 3 . 1 . Corrupted Parts 1 | . . . . . . . . . . 1 . . . System Corruption 7 | . . . . . . . . . . 7 . . . Parts Lost 43 | . 2 . . 1 . 6 3 9 . 18 . 3 1 Power 10 | . 1 . . . . 2 . 3 . 4 . . . Propulsion 17 | . 1 . . 1 . 1 3 2 . 8 . . 1 Utility 9 | . . . . . . 2 . 1 . 4 . 2 . Weapon 7 | . . . . . . 1 . 3 . 2 . 1 . Highest Loss Streak 4 | . 1 . . 1 . 2 2 2 . 4 . 1 1 To Critical Strikes 1 | . . . . . . . . . . 1 . . . Average Slot Usage (%) 93 | . 95 85 85 86 90 94 95 93 99 92 100 98 92 Engine 1 | . 11 . . . . 1 4 2 . . . . . Core 4 | . . . . 1 3 7 4 2 9 4 7 7 7 Wheel 1 | . 7 . . 4 . . . . . 2 . . . Hover 11 | . 15 . . . 9 3 9 1 . 19 30 30 23 Flight 18 | . 4 28 28 20 25 31 22 32 36 6 . . . Device 2 | . 3 . . . 3 . . 1 . 3 7 5 7 Storage 9 | . 14 14 14 14 9 9 9 9 8 7 7 7 7 Processor 6 | . 3 . . . . 8 9 4 4 8 15 15 15 Hackware 17 | . 6 14 14 14 18 15 17 20 22 21 15 13 15 Ballistic Gun 14 | . 13 28 28 28 13 14 17 16 12 12 7 8 15 Launcher 1 | . . . . . 3 2 . . . 1 7 5 . Naked Turns . | . . . . . . . . . . . . . . Heaviest Build 27 | 12 13 7 7 12 20 19 15 18 18 27 24 26 22 Greatest Support 36 | 26 20 8 8 26 20 20 19 19 20 34 32 32 36 Greatest Overweight (x) 4 | . 1 . . 1 3 2 1 . . 4 . . . Average Overweight (x) . | . . . . . . . . . . . . . . Largest Inventory Capacity 8 | 8 8 8 8 8 8 8 8 8 8 8 8 8 8 Average Capacity 7 | 7 8 8 8 8 8 8 8 8 7 8 8 8 8 Most Carried 8 | 5 8 8 8 8 8 8 8 8 8 8 8 8 8 Average Carried 7 | 1 7 7 8 7 7 7 7 7 7 7 8 7 8 Final Capacity 8 | 8 8 8 8 8 8 8 8 8 8 8 8 8 8 Final Carried 8 | 4 8 8 8 8 8 8 8 8 8 8 8 8 8 Class Distribution -------------------- 34% | Hacker-Mutant 30% | Hacker-Sprinter 14% | Scavenger-Mutant 10% | Mutant 9% | Scavenger-Sprinter Dominant Class ---------------- Mutant | -10/Materials Scavenger-Mutant | -10/Mines Scavenger-Mutant | -10/Exiles Scavenger-Mutant | -9/Mines Scavenger-Mutant | -8/Materials Hacker-Sprinter | -8/Garrison Hacker-Sprinter | -8/Materials Hacker-Sprinter | -8/Garrison Hacker-Sprinter | -8/Materials Hacker-Mutant | -7/Factory Hacker-Mutant | -7/Waste Hacker-Mutant | -7/Factory Hacker-Mutant | -7/Lower Caves Resources | -11 -10 -10 -10 -9 -8 -8 -8 -8 -8 -7 -7 -7 -7 ----------- Run | Yrd Mat Min Exi Min Mat Gar Mat Gar Mat Fac Was Fac Low Matter Collected 6910 | 294 557 193 . 141 278 943 116 699 410 2605 . 674 . Remotely 1067 | 94 . . . . . . . . . 513 . 460 . Salvage Created 6301 | 100 457 40 . 340 226 855 181 666 355 2385 . 696 . Parts 377 | 10 43 1 . 11 18 40 15 32 10 154 . 43 . Haulers Intercepted 8 | . 1 . . . 2 . . . 1 2 . 2 . Recyclers Shooed 8 | . . . . 2 . . . . 1 5 . . . Parts Field Recycled . | . . . . . . . . . . . . . . Retrieved Matter . | . . . . . . . . . . . . . . Parts Self-Destructed . | . . . . . . . . . . . . . . Prevented . | . . . . . . . . . . . . . . Kills | -11 -10 -10 -10 -9 -8 -8 -8 -8 -8 -7 -7 -7 -7 ------- Run | Yrd Mat Min Exi Min Mat Gar Mat Gar Mat Fac Was Fac Low Combat Hostiles Destroyed 118 | . 14 1 . 3 2 23 2 18 4 36 . 15 . Guns 91 | . 5 1 . 3 2 19 2 18 4 30 . 7 . Cannons 10 | . 9 . . . . . . . . 1 . . . AOE 17 | . . . . . . 4 . . . 5 . 8 . Classes Destroyed 14 | 2 5 . . . 2 3 . 1 . 1 . . . Worker 12 | . . . . . 2 . . . . 5 . 5 . Builder 13 | . . . . . . . . . . 10 . 3 . Tunneler 3 | 2 . . . . . . . . . . . 1 . Hauler 8 | . 1 . . . 2 . . . 1 2 . 2 . Recycler 15 | 1 . . . 3 . . 1 . 1 8 . 1 . Mechanic 2 | . . . . . 1 . . . 1 . . . . Operator 9 | . 1 . . . 1 . 1 . . 5 . 1 . Watcher 9 | . 3 . . . . . . . 1 4 . 1 . Swarmer 26 | . 9 1 . . . 6 . 4 . 6 . . . Grunt 68 | . 5 . . 3 2 13 1 11 3 17 . 13 . Brawler 2 | . . . . . . 2 . . . . . . . Sentry 9 | . . . . . . 1 . 1 1 5 . 1 . Hunter 7 | . . . . . . 1 1 1 . 4 . . . Programmer 6 | . . . . . . . . 1 . 4 . 1 . Best Kill Streak 6 | 3 4 1 . 3 3 4 3 3 3 5 . 6 . Combat Bots Only 6 | . 3 1 . 3 1 4 1 3 2 3 . 6 . Max Kills in Single Turn 4 | 1 2 1 . 1 1 2 1 1 1 4 . 3 . Gunslinging 1 | . . . . . . 1 . . . . . . . Exploded 2 | . . . . . . 1 . . . 2 . 2 . Melee . | . . . . . . . . . . . . . . Uniques/NPCs Destroyed . | . . . . . . . . . . . . . . Combat | -11 -10 -10 -10 -9 -8 -8 -8 -8 -8 -7 -7 -7 -7 -------- Run | Yrd Mat Min Exi Min Mat Gar Mat Gar Mat Fac Was Fac Low Hostile Shots Fired 677 | . 41 9 . 11 3 73 28 104 17 303 . 71 17 Missed 237 | . 13 8 . 3 1 15 7 35 3 114 . 28 10 Damage Taken 5877 | . 259 10 . 107 122 722 263 930 212 2604 . 551 97 Core 1328 | . 86 . . 11 18 110 68 278 46 588 . 93 30 Absorbed by Shields 202 | . . . . . . 108 . 82 . 12 . . . Redirected to Shielding 225 | . . . . . . . . . . 207 . 18 . Regen/Repaired (Parts) 376 | . 28 . . . . . 246 . 79 23 . . . Core Remaining (%) 55 | 100 . . . 61 . . . . 5 . . . . Volleys Fired 588 | 4 60 3 . 23 29 113 21 71 28 186 1 47 2 Largest 2 | 2 2 2 . 2 2 2 2 2 2 2 2 2 2 Hottest 90 | 60 80 40 . 40 66 58 53 61 90 76 62 67 56 Shots Fired 1019 | 8 108 6 . 46 42 175 40 133 53 328 2 74 4 Gun 888 | 8 54 6 . 46 34 164 40 133 53 302 1 43 4 Cannon 67 | . 54 . . . . . . . . 13 . . . Launcher 64 | . . . . . 8 11 . . . 13 1 31 . Special . | . . . . . . . . . . . . . . Kinetic 883 | 4 54 6 . 46 34 164 40 133 39 315 1 43 4 Thermal 68 | . 54 . . . . . . . 14 . . . . Explosive 64 | . . . . . 8 11 . . . 13 1 31 . Electromagnetic 4 | 4 . . . . . . . . . . . . . Robot Hit Streak 25 | 6 16 3 . 9 6 19 9 11 6 13 13 25 1 Robot Miss Streak 9 | . 4 1 . 3 3 6 3 3 9 8 . 3 2 Penetration Max 1 | . . . . . . 1 . 1 . 1 . . . Secondary Targets 9 | . . 1 . . . 2 . . 1 5 . . . Max Gunslinging Chain 1 | . . 1 . . . 1 . . 1 1 . . . Shots Hit Robots 634 | 6 64 5 . 33 24 79 27 75 36 229 2 53 1 Core Hits 426 | 4 25 3 . 11 16 36 8 32 32 205 . 54 . Critical Kills 14 | . . . . . . 3 2 4 . 2 . 3 . Critical Parts Destroyed 9 | . . . . . . 3 1 1 . 3 . 1 . Critical Strikes 23 | . . . . . . 6 3 5 . 5 . 4 . Destroy 23 | . . . . . . 6 3 5 . 5 . 4 . Melee Attacks . | . . . . . . . . . . . . . . Impact . | . . . . . . . . . . . . . . Slashing . | . . . . . . . . . . . . . . Piercing . | . . . . . . . . . . . . . . Sneak Attacks . | . . . . . . . . . . . . . . Combat Hostiles . | . . . . . . . . . . . . . . Follow-up Attacks . | . . . . . . . . . . . . . . Damage Inflicted 14346 | 71 869 41 . 237 630 1898 335 1384 633 5414 213 2599 22 Guns 9404 | 71 254 41 . 237 425 1418 335 1384 633 3954 17 613 22 Cannons 860 | . 615 . . . . . . . . 245 . . . Explosions 4082 | . . . . . 205 480 . . . 1215 196 1986 . Melee . | . . . . . . . . . . . . . . Ramming . | . . . . . . . . . . . . . . Kinetic 9498 | 15 254 41 . 237 425 1418 335 1384 538 4199 17 613 22 Thermal 965 | . 615 . . . . . . . 95 255 . . . Explosive 3827 | . . . . . 205 480 . . . 960 196 1986 . Electromagnetic 56 | 56 . . . . . . . . . . . . . Impact . | . . . . . . . . . . . . . . Slashing . | . . . . . . . . . . . . . . Piercing . | . . . . . . . . . . . . . . Highest Corruption 20 | . . . . . 1 2 2 4 4 9 19 20 20 Average Corruption 5 | . . . . . 1 1 2 2 4 5 15 19 20 Corruption Purged 3 | . . . . . . . . . . 3 . . . Corruption Blocked . | . . . . . . . . . . . . . . Effects 125 | . . . . . 1 12 9 17 9 39 3 35 . Message Errors 35 | . . . . . . 4 . 6 2 13 1 9 . Matter Fused 27 | . . . . . 1 3 2 5 1 7 . 8 . Heat Flow Errors 9 | . . . . . . 1 1 1 1 4 . 1 . Energy Discharges 13 | . . . . . . 3 1 . 2 4 . 3 . Parts Rejected 1 | . . . . . . . . . . . . 1 . Parts Fused 2 | . . . . . . . 1 . . . . 1 . Data Loss (minor) 17 | . . . . . . 1 2 1 1 4 1 7 . Data Loss (major) 4 | . . . . . . . 1 . . 2 . 1 . Misfires 2 | . . . . . . . . 1 . . . 1 . Alerts 3 | . . . . . . . . 1 . 1 . 1 . Misdirections 1 | . . . . . . . . . . . 1 . . Weapon Failures 11 | . . . . . . . 1 2 2 4 . 2 . Overload Shots . | . . . . . . . . . . . . . . Overflow Damage 105 | . 14 . . . 14 9 . 9 . 51 2 6 . Projectiles 14 | . 14 . . . . . . . . . . . . Explosions 91 | . . . . . 14 9 . 9 . 51 2 6 . Melee . | . . . . . . . . . . . . . . Knockbacks 1 | . . . . . . . . . . 1 . . . Impact . | . . . . . . . . . . . . . . Kinetic 1 | . . . . . . . . . . 1 . . . Secondary . | . . . . . . . . . . . . . . Self-Inflicted Damage 227 | . . . . . 60 39 . 86 . 42 . . . Shots 5 | . . . . . 2 1 . 1 . 1 . . . Rammed . | . . . . . . . . . . . . . . Targets Rammed . | . . . . . . . . . . . . . . Kicked . | . . . . . . . . . . . . . . Crushed . | . . . . . . . . . . . . . . Highest Temperature 324 | 20 324 . . 29 8 253 251 79 260 249 . 224 . Average Temperature 51 | 15 82 . . 10 4 27 35 22 73 53 . 36 . Received Heat Transfer 1589 | . 84 . . 99 9 253 63 192 135 550 . 204 . Effects 3 | . 3 . . . . . . . . . . . . Interference 2 | . 2 . . . . . . . . . . . . Short Circuit 1 | . 1 . . . . . . . . . . . . Siege Activations . | . . . . . . . . . . . . . . Robots Corrupted . | . . . . . . . . . . . . . . Combat Hostiles . | . . . . . . . . . . . . . . Parts Fried 1 | . . . . . . 1 . . . . . . . Impact Corruptions . | . . . . . . . . . . . . . . Robots Melted . | . . . . . . . . . . . . . . Combat Hostiles . | . . . . . . . . . . . . . . Parts Melted . | . . . . . . . . . . . . . . Heat Transferred 1667 | . 1295 . . . . . . . 222 150 . . . Parts Sabotaged . | . . . . . . . . . . . . . . Parts Stolen . | . . . . . . . . . . . . . . Parts Stripped . | . . . . . . . . . . . . . . Power Chain Reactions . | . . . . . . . . . . . . . . Alert | -11 -10 -10 -10 -9 -8 -8 -8 -8 -8 -7 -7 -7 -7 ------- Run | Yrd Mat Min Exi Min Mat Gar Mat Gar Mat Fac Was Fac Low Peak Influence 1492 | 15 254 146 . 65 141 1492 837 1124 670 895 354 1184 . Initial 727 | . 9 96 . . 25 19 727 316 542 28 310 247 . Average 497 | 6 103 110 . 24 36 658 743 649 530 509 332 866 . Maximum Alert Level 4 | . 1 . . . . 4 3 4 2 3 1 4 . Low Security (%) 26 | 100 84 100 . 100 100 17 . . 1 8 . . . Level 1 16 | . 15 . . . . 9 . 23 9 25 100 21 . Level 2 26 | . . . . . . 20 5 42 89 43 . 2 . Level 3 23 | . . . . . . 34 94 29 . 22 . 38 . Level 4 6 | . . . . . . 18 . 5 . . . 37 . Level 5 . | . . . . . . . . . . . . . . High Security . | . . . . . . . . . . . . . . Max Security . | . . . . . . . . . . . . . . Squads Dispatched 34 | . 2 . . . 1 . 5 . 2 17 . 7 . Investigation 14 | . 2 . . . . . 1 . 1 8 . 2 . Extermination 5 | . . . . . . . . . . 4 . 1 . Reinforcement 11 | . . . . . 1 . 2 . . 4 . 4 . Assault 2 | . . . . . . . 1 . . 1 . . . Garrison 2 | . . . . . . . 1 . 1 . . . . Intercept . | . . . . . . . . . . . . . . Searches Triggered . | . . . . . . . . . . . . . . Construction Impeded 2 | . . . . . 1 . . . . . . 1 . Haulers Reinforced 2 | . . . . . . . . . . . . 2 . Active Scanning Responses . | . . . . . . . . . . . . . . Cargo Convoy Interrupts . | . . . . . . . . . . . . . . Stealth | -11 -10 -10 -10 -9 -8 -8 -8 -8 -8 -7 -7 -7 -7 --------- Run | Yrd Mat Min Exi Min Mat Gar Mat Gar Mat Fac Was Fac Low Distress Signals 5 | . 2 . . . 1 . 1 . 1 . . . . Communications Jammed . | . . . . . . . . . . . . . . Distress Signals . | . . . . . . . . . . . . . . Times Spotted 202 | . 22 4 . 3 7 29 15 25 8 66 3 16 4 Peak Tracking Total 9 | . 4 3 . 2 4 4 9 4 3 6 3 3 4 Tactical Retreats 14 | . . . . . . 3 . 3 . 8 . . . Traps | -11 -10 -10 -10 -9 -8 -8 -8 -8 -8 -7 -7 -7 -7 ------- Run | Yrd Mat Min Exi Min Mat Gar Mat Gar Mat Fac Was Fac Low Traps Triggered 44 | . 1 . . . 1 15 . 14 . 11 . 2 . Indirectly . | . . . . . . . . . . . . . . Trap Hack Attempts . | . . . . . . . . . . . . . . Triggered . | . . . . . . . . . . . . . . Disarmed 5 | . . . . . . . . . . 5 . . . Reprogrammed . | . . . . . . . . . . . . . . Reused 8 | . . . . . . 8 . . . . . . . Traps Extracted . | . . . . . . . . . . . . . . Installed 11 | . . . . 3 . 8 . . . . . . . Triggered 8 | . . . . . . 8 . . . . . . . Most Traps Carried 2 | . . . . . . 2 . . . . . . . Machines | -11 -10 -10 -10 -9 -8 -8 -8 -8 -8 -7 -7 -7 -7 ---------- Run | Yrd Mat Min Exi Min Mat Gar Mat Gar Mat Fac Was Fac Low Machines Disabled 68 | . 2 . . . 1 16 . 9 . 8 . 32 . Max in Single Turn 9 | . 1 . . . 1 2 . 2 . 2 . 9 . Garrison Access 2 | . . . . . . . . . 1 1 . . . Garrison Relay 12 | . . . . . . 8 . 4 . . . . . Phase Generator 2 | . . . . . . 1 . 1 . . . . . Machines Repaired . | . . . . . . . . . . . . . . Machines Dismantled . | . . . . . . . . . . . . . . Machines Sabotaged . | . . . . . . . . . . . . . . Overloaded Fab Kills . | . . . . . . . . . . . . . . Hacking | -11 -10 -10 -10 -9 -8 -8 -8 -8 -8 -7 -7 -7 -7 --------- Run | Yrd Mat Min Exi Min Mat Gar Mat Gar Mat Fac Was Fac Low Machines Accessed 81 | . 7 . 5 . 8 3 8 2 11 28 . 9 . Terminals 49 | . 6 . . . 6 3 4 2 8 15 . 5 . Fabricators 5 | . . . . . . . . . . 4 . 1 . Repair Stations 6 | . 1 . . . . . 2 . 1 2 . . . Recycling Units 4 | . . . . . . . . . . 3 . 1 . Scanalyzers 7 | . . . . . 1 . 1 . 1 2 . 2 . Garrison Access 5 | . . . . . 1 . 1 . 1 2 . . . Total Hacks 336 | . 24 . 50 . 53 7 32 4 56 88 . 22 . Successful 200 | . 11 . 50 . 35 2 14 2 35 41 . 10 . Failed 131 | . 12 . . . 17 5 17 2 20 46 . 12 . Catastrophic 19 | . 1 . . . . . 2 . . 12 . 4 . Database Lockouts 5 | . 1 . . . 1 . 1 . 1 1 . . . Manual 101 | . 17 . 1 . 16 . 11 2 32 17 . 5 . Terminals 175 | . 19 . . . 31 7 17 4 39 46 . 12 . Fabricators 12 | . . . . . . . . . . 10 . 2 . Repair Stations 34 | . 5 . . . . . 11 . 10 8 . . . Recycling Units 9 | . . . . . . . . . . 6 . 3 . Scanalyzers 46 | . . . . . 18 . 3 . 6 14 . 5 . Garrison Access 10 | . . . . . 4 . 1 . 1 4 . . . Terminal Hacks 125 | . 8 . 50 . 16 2 4 2 22 17 . 4 . Record 49 | . . . 49 . . . . . . . . . . Part Schematic 2 | . . . . . . . . . . 2 . . . Robot Schematic 9 | . 1 . . . . . 1 . 5 2 . . . Robot Analysis 11 | . 1 . . . 3 . . . 7 . . . . Prototype ID Bank 11 | . . . . . 3 . 1 . 2 2 . 3 . Open Door 2 | . . . . . . 1 . 1 . . . . . Level Access Points 3 | . 1 . . . . . . . 1 1 . . . Branch Access Points 4 | . 1 . . . 1 . . . . 1 . 1 . Emergency Access Points 1 | . . . . . . 1 . . . . . . . Terminal Index 4 | . 1 . . . 1 . . . 1 1 . . . Fabricator Index 1 | . . . . . . . . . . 1 . . . Scanalyzer Index 1 | . . . . . . . . . 1 . . . . Garrison Index 1 | . . . . . 1 . . . . . . . . Alert Level 6 | . 1 . . . 2 . . . 2 1 . . . Unreport Threat 9 | . 1 . . . 2 . 1 . 3 2 . . . Disarm Traps 1 | . . . . . . . . . . 1 . . . Recall Reinforcements 1 | . . . . . . . . . . 1 . . . Zone Layout 7 | . 1 . . . 3 . 1 . . 2 . . . Patrol Navigation 1 | . . . . . . . . 1 . . . . . Derelict Proto ID Bank 1 | . . . 1 . . . . . . . . . . Fabricator Hacks 7 | . . . . . . . . . . 7 . . . Load Schematic 4 | . . . . . . . . . . 4 . . . Build 3 | . . . . . . . . . . 3 . . . Repair Station Hacks 20 | . 3 . . . . . 8 . 6 3 . . . Scan Component 11 | . 1 . . . . . 4 . 4 2 . . . Repair 8 | . 1 . . . . . 4 . 2 1 . . . Refit 1 | . 1 . . . . . . . . . . . . Recycling Unit Hacks 7 | . . . . . . . . . . 4 . 3 . Process 1 | . . . . . . . . . . . . 1 . Report Inventory 1 | . . . . . . . . . . . . 1 . Retrieve Matter 1 | . . . . . . . . . . . . 1 . Retrieve Components 4 | . . . . . . . . . . 4 . . . Scanalyzer 36 | . . . . . 17 . 1 . 6 9 . 3 . Insert Component 17 | . . . . . 7 . 1 . 3 4 . 2 . Analyze 19 | . . . . . 10 . . . 3 5 . 1 . Garrison Access Hacks 5 | . . . . . 2 . 1 . 1 1 . . . Unlock Access 2 | . . . . . 1 . 1 . . . . . . Seal Access 2 | . . . . . . . . . 1 1 . . . Coupler Status 1 | . . . . . 1 . . . . . . . . Unauthorized Hacks . | . . . . . . . . . . . . . . Terminals . | . . . . . . . . . . . . . . Fabricators . | . . . . . . . . . . . . . . Repair Stations . | . . . . . . . . . . . . . . Recycling Units . | . . . . . . . . . . . . . . Scanalyzers . | . . . . . . . . . . . . . . Garrison Access . | . . . . . . . . . . . . . . Data Cores Recovered 4 | . 1 . . . 1 . . . . 1 . 1 . Used 3 | . 1 . . . 1 . . . . 1 . . . Hacking Detections 67 | . 6 . . . 7 3 7 1 9 25 . 9 . Full Trace Events 14 | . 1 . . . . 2 2 . 1 6 . 2 . Feedback Events 2 | . . . . . . 1 . . . . . 1 . Hackware Fried 2 | . . . . . . 1 . . . . . 1 . Feedback Blocked 1 | . . . . . . . 1 . . . . . . Robot Schematics Acquired 9 | . 1 . . . . . 1 . 5 2 . . . Robots Built 5 | . . . . . . . . . . 5 . . . Authchips 2 | . . . . . . . . . . 2 . . . Time 174 | . . . . . . . . . . 174 . . . Total Robot Build Rating 15 | . . . . . . . . . . 15 . . . Part Schematics Acquired 17 | . . . . . 7 . . . 3 6 . 1 . Parts Built . | . . . . . . . . . . . . . . Authchips . | . . . . . . . . . . . . . . Time . | . . . . . . . . . . . . . . Total Part Build Rating . | . . . . . . . . . . . . . . Parts Repaired 8 | . 1 . . . . . 4 . 2 1 . . . Time 384 | . 26 . . . . . 190 . 136 32 . . . Parts Recycled . | . . . . . . . . . . . . . . Recycled Matter 21 | . . . . . . . . . . . . 21 . Retrieved Matter 21 | . . . . . . . . . . . . 21 . Retrieved Components 40 | . . . . . . . . . . 40 . . . Parts Scanalyzed 15 | . . . . . 7 . 1 . 2 4 . 1 . Part Schematics Acquired 15 | . . . . . 7 . . . 3 4 . 1 . Parts Damaged 1 | . . . . . . . . . . . . 1 . Bothacking | -11 -10 -10 -10 -9 -8 -8 -8 -8 -8 -7 -7 -7 -7 ------------ Run | Yrd Mat Min Exi Min Mat Gar Mat Gar Mat Fac Was Fac Low Used RIF Installer . | . . . . . . . . . . . . . . Robots Hacked . | . . . . . . . . . . . . . . Non-combat . | . . . . . . . . . . . . . . Combat . | . . . . . . . . . . . . . . Robot Hacks Applied . | . . . . . . . . . . . . . . Relay Couplers Released 45 | . . . . . . 30 . 15 . . . . . Machine Destruction 45 | . . . . . . 30 . 15 . . . . . Fabnet Peak Effective % . | . . . . . . . . . . . . . . Robots Rewired 3 | . . . . . . 3 . . . . . . . Allies Hacked . | . . . . . . . . . . . . . . Hacks Repelled . | . . . . . . . . . . . . . . Allies | -11 -10 -10 -10 -9 -8 -8 -8 -8 -8 -7 -7 -7 -7 -------- Run | Yrd Mat Min Exi Min Mat Gar Mat Gar Mat Fac Was Fac Low Total Allies 14 | . . 3 . . . 3 . 2 . 5 1 . . Largest Group 3 | . . 3 2 2 . 3 . 2 . 3 2 . . Highest-Rated Group 95 | . . 40 22 22 . 95 . 45 . 75 53 . . Highest-Rated Ally 39 | . . 16 15 15 . 39 . 25 . 26 31 . . Total Orders 1 | . . . . . . . . . . 1 . . . STAY 1 | . . . . . . . . . . 1 . . . Ally Attacks 47 | . . 13 . 7 . . . 18 . 5 4 . . Total Damage 1030 | . . 155 . 81 . . . 579 . 177 38 . . Kills 5 | . . 1 . . . . . 3 . 1 . . . Allies Corrupted . | . . . . . . . . . . . . . . Allies Melted . | . . . . . . . . . . . . . . Intel | -11 -10 -10 -10 -9 -8 -8 -8 -8 -8 -7 -7 -7 -7 ------- Run | Yrd Mat Min Exi Min Mat Gar Mat Gar Mat Fac Was Fac Low Robot Analysis Total 11 | . 1 . . . 3 . . . 7 . . . . Derelict Logs Recovered 3 | . . 2 . 1 . . . . . . . . . Drone Launches . | . . . . . . . . . . . . . . Drone Recoveries . | . . . . . . . . . . . . . . Exploration | -11 -10 -10 -10 -9 -8 -8 -8 -8 -8 -7 -7 -7 -7 ------------- Run | Yrd Mat Min Exi Min Mat Gar Mat Gar Mat Fac Was Fac Low Turns Passed 9199 | 78 770 343 197 368 406 1507 409 1156 477 2693 39 748 8 Spaces Moved 12662 | 56 745 596 433 541 605 2176 394 1210 686 3629 93 1492 6 Core 6 | 3 . . . . 1 . . . . 2 . . . Treads . | . . . . . . . . . . . . . . Legs 13 | . . . . 13 . . . . . . . . . Wheels 633 | 53 207 . . 70 . . . . . 303 . . . Hover 4713 | . 350 . . . 259 44 11 . . 2458 93 1492 6 Flight 7297 | . 188 596 433 458 345 2132 383 1210 686 866 . . . Fastest Speed 26 | 50 37 37 37 34 26 26 29 27 26 26 38 38 30 Average Speed 39 | 85 66 37 37 45 42 30 29 28 26 47 38 38 30 Slowest Speed 250 | 90 160 37 37 120 200 180 116 30 28 250 38 42 30 Overloaded Moves 6 | . . . . . . . . . . . . . 6 Propulsion Burnouts . | . . . . . . . . . . . . . . Robots Hopped 47 | . 6 11 . 10 2 . 3 . 4 11 . . . Cave-ins Triggered . | . . . . . . . . . . . . . . Exploration Rate (%) 57 | 4 80 69 91 94 56 89 29 59 58 67 79 33 3 Regions Visited 13 Branch Regions 4 Pre-discovered Areas 3 | . . 1 1 1 . . . . . . . . . Known Exits Taken 5 | . 1 . . . 1 . 1 . 1 . . 1 . Unknown Exits Taken 4 | 1 . 1 1 1 . . . . . . . . . Scrap Searched 4 | . . 2 . 2 . . . . . . . . . Spaces Dug 27 | . . . . . . . . . . 27 . . . Terrain Destroyed 774 | . . . . . 86 144 3 81 . 218 15 227 . Melee . | . . . . . . . . . . . . . . Projectile 7 | . . . . . 1 . 3 . . 3 . . . AOE 766 | . . . . . 85 144 . 81 . 214 15 227 . Terrain Rammed . | . . . . . . . . . . . . . . Walls Destroyed . | . . . . . . . . . . . . . . Machines Disabled . | . . . . . . . . . . . . . . Actions | -11 -10 -10 -10 -9 -8 -8 -8 -8 -8 -7 -7 -7 -7 --------- Run | Yrd Mat Min Exi Min Mat Gar Mat Gar Mat Fac Was Fac Low Total 15816 | 75 928 704 469 619 716 2878 641 1887 930 4274 93 1594 8 Wait 1553 | . 60 107 35 33 35 265 200 346 175 270 . 27 . Move 12563 | 55 734 576 432 522 601 2175 387 1208 677 3607 92 1491 6 Hop 40 | . 4 8 . 8 2 . 3 . 4 11 . . . Pick Up 111 | 4 24 2 1 5 12 15 6 3 7 26 . 6 . Fast Attach 111 | 8 7 . . 9 7 4 8 12 8 41 . 7 . Attach 39 | . 5 . . . 4 5 2 1 2 18 . 2 . Detach 28 | 1 4 . . 1 1 4 . 1 4 11 . 1 . Swap 86 | 1 5 3 . 1 9 10 6 6 9 33 . 3 . Drop 179 | 2 25 5 1 14 16 13 8 9 16 60 . 10 . Fire 588 | 4 60 3 . 23 29 113 21 71 28 186 1 47 2 Melee . | . . . . . . . . . . . . . . Ram . | . . . . . . . . . . . . . . Kick . | . . . . . . . . . . . . . . Crush . | . . . . . . . . . . . . . . Escape Stasis 490 | . . . . . . 249 . 230 . 11 . . . Rewire 17 | . . . . . . 17 . . . . . . . Trap 11 | . . . . 3 . 8 . . . . . . . Miscellaneous . | . . . . . . . . . . . . . . Route ------- -11/Scrapyard -10/Materials (discovered 5 exits: *Mat x3 / *Min x2) -10/Mines (discovered 2 exits: *Mat / *Exi) -10/Exiles -9/Mines (discovered 2 exits: *Mat x2) -8/Materials (discovered 2 exits: Fac / Gar) -8/Garrison (discovered 3 exits: *Mat x3) -8/Materials -8/Garrison (discovered 2 exits: *Mat x2) -8/Materials (discovered 3 exits: *Fac x3) -7/Factory (discovered 6 exits: *Fac x4 / *Low x2) -7/Waste -7/Factory (discovered 2 exits: *Low x2) -7/Lower Caves History --------- Turn | Location | Event 14 | -11/Scrapyard | Discovered new exit (range 15) 79 | -11/Scrapyard | Entered Materials 84 | -10/Materials | Discovered new exit (range 15) 275 | -10/Materials | Discovered new exit (range 8) 311 | -10/Materials | Build established: Mutant 357 | -10/Materials | Discovered new exit (range 3) 462 | -10/Materials | Central database locked down 470 | -10/Materials | Discovered new exit (range 10) 472 | -10/Materials | Identified exit to Materials 472 | -10/Materials | Identified exit to Mines 739 | -10/Materials | Repaired Hover Unit 849 | -10/Materials | Entered Mines 850 | -10/Mines | Assembled infested the area 872 | -10/Mines | Assisted by bots powering up and referring to "LRC-V3" 874 | -10/Mines | Met 8R-AWN 1006 | -10/Mines | Learned location of Zion (-6) 1010 | -10/Mines | Discovered exit to Materials (range 13) 1013 | -10/Mines | Learned Materials terminal intel 1027 | -10/Mines | Discovered new exit (range 5) 1044 | -10/Mines | Found a damaged Exp. Sensor Array with a note attached 1045 | -10/Mines | Found Prototype Device 1131 | -10/Mines | Build established: Scavenger-Mutant 1192 | -10/Mines | Entered Exiles 1192 | -10/Exiles | Accompanied by 2 allies 1202 | -10/Exiles | Welcomed by 8R-AWN 1208 | -10/Exiles | Met EX-HEX 1218 | -10/Exiles | Met EX-BIN 1223 | -10/Exiles | Aligned with FarCom system 1224 | -10/Exiles | Given EX-Vault access code 1238 | -10/Exiles | Opened EX-Vault 1241 | -10/Exiles | Found Skeleton Box 1250 | -10/Exiles | Warned to stay clear of 0b10 Research branches 1268 | -10/Exiles | Met EX-DEC 1282 | -10/Exiles | Visited The Gauntlet 1349 | -10/Exiles | Discovered new exit (range 14) 1389 | -10/Exiles | Left Exiles lab with Skeleton Box 1389 | -10/Exiles | Entered Mines 1389 | -9/Mines | Accompanied by 2 allies 1390 | -9/Mines | Learned location of Storage (-9) 1435 | -9/Mines | A weapon hastily lodged in a ceiling crevice suddenly fell to the ground 1451 | -9/Mines | Found a hidden stash of uninstalled traps 1476 | -9/Mines | Learned 2 Materials zone layouts 1477 | -9/Mines | Discovered new exit (range 12) 1484 | -9/Mines | Received a Rocket Launcher from a helpful Derelict 1663 | -9/Mines | Discovered new exit (range 9) 1757 | -9/Mines | Entered Materials 1757 | -8/Materials | Evolved 4 slots: Propulsion x2, Utility x2 1758 | -8/Materials | Identified exit to Factory 1759 | -8/Materials | Loaded intel: 10 terminal locations 1844 | -8/Materials | Identified Exp. Sensor Array 1902 | -8/Materials | Central database locked down 2028 | -8/Materials | Met 7R-MNS 2163 | -8/Materials | Identified exit to Garrison 2163 | -8/Materials | Entered Garrison 2336 | -8/Garrison | Lost 3 allies 2397 | -8/Garrison | Discovered new exit (range 13) 2408 | -8/Garrison | Garrison Relay disabled 2430 | -8/Garrison | Triggered checkpoint 2488 | -8/Garrison | Triggered checkpoint 2535 | -8/Garrison | Garrison Relay disabled 2559 | -8/Garrison | Discovered new exit (range 10) 2569 | -8/Garrison | Build established: Hacker-Sprinter 2672 | -8/Garrison | Discovered new exit (range 13) 2702 | -8/Garrison | Triggered checkpoint 2766 | -8/Garrison | Triggered checkpoint 2876 | -8/Garrison | Garrison Relay disabled 3138 | -8/Garrison | Triggered checkpoint 3203 | -8/Garrison | Hacking Suite fried by hacking feedback 3454 | -8/Garrison | Build established: Scavenger-Sprinter 3541 | -8/Garrison | Phase Generator disabled 3625 | -8/Garrison | Garrison Relay disabled 3627 | -8/Garrison | Garrison Relay disabled 3634 | -8/Garrison | Garrison Relay disabled 3638 | -8/Garrison | Triggered checkpoint 3638 | -8/Garrison | Garrison Relay disabled 3670 | -8/Garrison | Entered Materials 3677 | -8/Materials | Identified exit to Garrison 3736 | -8/Materials | Repaired Hvy. Battle Rifle 3801 | -8/Materials | Repaired Imp. VTOL Module 3862 | -8/Materials | Repaired Imp. VTOL Module 3920 | -8/Materials | Garrison activated, responded to threat 4019 | -8/Materials | Repaired Lgt. Assault Rifle 4044 | -8/Materials | Central database locked down 4070 | -8/Materials | First assault squad dispatched 4079 | -8/Materials | Entered Garrison 4208 | -8/Garrison | Triggered checkpoint 4263 | -8/Garrison | Build established: Hacker-Sprinter 4356 | -8/Garrison | Discovered new exit (range 8) 4401 | -8/Garrison | Garrison Relay disabled 4406 | -8/Garrison | Triggered checkpoint 4480 | -8/Garrison | Triggered checkpoint 4577 | -8/Garrison | Discovered new exit (range 8) 4590 | -8/Garrison | Attempted to access garrison exit controls, blocked by remote lockdown 4634 | -8/Garrison | Phase Generator disabled 4635 | -8/Garrison | Core integrity fell below 50% 4877 | -8/Garrison | Rescued a captive Derelict 4878 | -8/Garrison | Rescued a captive Derelict 4909 | -8/Garrison | Garrison Relay disabled 4912 | -8/Garrison | Garrison Relay disabled 4985 | -8/Garrison | Triggered checkpoint 5088 | -8/Garrison | Garrison Relay disabled 5180 | -8/Garrison | Core integrity fell below 20% 5235 | -8/Garrison | Entered Materials 5340 | -8/Materials | Repaired Imp. VTOL Module 5419 | -8/Materials | Repaired Broken Imp. VTOL Module 5638 | -8/Materials | Garrison activated, responded to threat 5710 | -8/Materials | Central database locked down 5712 | -8/Materials | Entered Factory 5712 | -7/Factory | Evolved 2 slots: Utility x2 5808 | -7/Factory | Central database locked down 5808 | -7/Factory | Identified exit to Lower Caves 5808 | -7/Factory | Identified exit to Factory 6119 | -7/Factory | Build established: Hacker-Mutant 6244 | -7/Factory | Repaired Imp. Hover Unit 6912 | -7/Factory | First assault squad dispatched 6983 | -7/Factory | Fabricated O-24 Administrator? 7013 | -7/Factory | Fabricated O-24 Administrator (x1) 7038 | -7/Factory | Core integrity fell below 50% 7074 | -7/Factory | Lost 4 parts (1p2n1u) 7297 | -7/Factory | Lost 3 parts (3n) 7829 | -7/Factory | Core integrity fell below 20% 8364 | -7/Factory | Fabricated C-17 Slicer? 8405 | -7/Factory | Sucked down chute 8405 | -7/Factory | Entered Waste 8406 | -7/Waste | Met a frightened Derelict 8418 | -7/Waste | Spotted C-40 Crusher 8420 | -7/Waste | 1 allies followed down the chute 8420 | -7/Waste | EMP discharged 8420 | -7/Waste | System corruption reached 10% 8421 | -7/Waste | Spotted C-40 Crusher 8422 | -7/Waste | Spotted C-40 Crusher 8434 | -7/Waste | Spotted C-40 Crusher 8436 | -7/Waste | Spotted C-40 Crusher 8438 | -7/Waste | Spotted C-40 Crusher 8439 | -7/Waste | Discovered new exit (range 10) 8444 | -7/Waste | Entered Factory 8513 | -7/Factory | Discovered exit to Lower Caves (range 10) 8757 | -7/Factory | Hacking Suite fried by hacking feedback 9192 | -7/Factory | Entered Lower Caves 9200 | -7/Lower Caves | Destroyed by S-27 Virus with Autogun Last Messages --------------- 09054_ Acquired Core Analyzer. 09067_ U-05 Engineer lays Concrete. 09073_ GV 09135_ System corrupted: Matter fused (-10). 09136_ System corrupted: Prc. Assault Rifle jammed. 09150_ System corrupted: Component data lost. 09164_ Dropped Faulty Prc. Assault Rifle. 09164_ Acquired Gravmag System. 09168_ System corrupted: Component data lost. 09168_ R-06 Scavenger destroyed. 09171_ Acquired 82 matter. 09188_ System corrupted: Heat flow error (+250). LOCATION=LOWER CAVES GOAL=ESCAPE 09198_ Cld. Airjet destroyed. Map ----- +----------------------------------------------------+ | | | | | ?????????????????????????????????????????????????? | | ?????????????????????????????????????????????????? | | ?????????????????????????????????????????????????? | | ?????????????????????????????????????????????????? | | ?????????????????????????????????????????????????? | | ?????????????????????????????????????????????????? | | ?????????????????????????????????????????????????? | | ?????????????????????????????????????????????????? | | ?????????????????????????????????????????????????? | | ?????????????????????????????????????????????????? | | ?????????????????????????????????????????????????? | | ?????????????????????????????????????????????????? | | ?????????????????????????????????????????????????? | | ?????????????????????????????????????????????????? | | ?????????????????????????????????????????????????? | | ???????????????????????##????????????????????????? | | ???????????????????###?? ##??????????????????????? | | ???????????????????? ## ##?????????????????????? | | ????????????????????? # #?????????????????????? | | ?????????????????????? #?????????????????????? | | ??????????????????????? # ##????????????????????? | | ???????????????????????# #????????????????????? | | ???????????????????????# ##???????????????????? | | ???????????????????????# @ ##??????????????????? | | ???????????????????????## # #??????????????????? | | ????????????????????????# #??????????????????? | | ????????????????????????#### ##?????????????????? | | ??????????????????????????## ### #???????????? | | ??????????????????????????# #????????????? | | ??????????????????????????### #????????????? | | ????????????????????????????# #????????????? | | ????????????????????????????# #???????????? | | ????????????????????????????# #???????????? | | ????????????????????????????# s #???????????? | | ???????????????????????????? ? #???????????? | | ???????????????????????????? ### #???????????? | | ????????????????????????????# #?? ##???????????? | | ?????????????????????????????# #???#????????????? | | ?????????????????????????????? #????????????????? | | ?????????????????????????????? #????????????????? | | ?????????????????????????????? #????????????????? | | ?????????????????????????????? #????????????????? | | ?????????????????????????????? ????????????????? | | ?????????????????????????????? ?????????????????? | | ?????????????????????????????????????????????????? | | ?????????????????????????????????????????????????? | | ?????????????????????????????????????????????????? | | ?????????????????????????????????????????????????? | +----------------------------------------------------+ Best States ------------- Heat Dissipation 45 Energy Generation 17 Energy Capacity 300 Matter Stores 306 Matter Capacity 500 Sight Range 16 Robot Scan Range 20 Terrain Scan Range 16 Terrain Scan Density 10 EM Shielding 2 Armor Coverage 150 Propulsion Shielding 66 Evasion (%) 64 Launcher Accuracy 20 Target Analysis 6 Core Analysis 6 Kinecelleration 30 Salvage Targeting 2 Offensive Hacking 20 Defensive Hacking 10 Authchip Count 2 Item Schematics ----------------- Hvy. Battle Rifle | -8/Materials | Scanalyzed Propulsion Shielding | -8/Materials | Scanalyzed Hover Unit | -8/Materials | Scanalyzed Rocket Launcher | -8/Materials | Scanalyzed Exp. Sensor Array | -8/Materials | Scanalyzed Lgt. Nuclear Core | -8/Materials | Scanalyzed Hcp. Matter Pod | -8/Materials | Scanalyzed Imp. VTOL Module | -8/Materials | Scanalyzed System Shield | -8/Materials | Scanalyzed Flak Gun | -8/Materials | Scanalyzed Mic. Nuclear Core | -7/Factory | Scanalyzed System Restoration Module | -7/Factory | Scanalyzed Adv. Assault Cannon | -7/Factory | Scanalyzed Imp. Kinecellerator | -7/Factory | Hacked Coil Gun | -7/Factory | Hacked Imp. Propulsion Shielding | -7/Factory | Scanalyzed Weapon Cycler | -7/Factory | Scanalyzed Robot Schematics ------------------ O-16 Technician | -10/Materials | Hacked S-10 Pest | -8/Materials | Hacked M-13 Machinist | -8/Materials | Hacked D-53 Grenadier | -8/Materials | Hacked C-17 Slicer | -8/Materials | Hacked I-25 Savior | -8/Materials | Hacked H-55 Commando | -8/Materials | Hacked O-24 Administrator | -7/Factory | Hacked L-41 Fighter | -7/Factory | Hacked Fabricated ------------ O-24 Administrator | x1 | -7/Factory | Authchip O-24 Administrator | x1 | -7/Factory | Authchip C-17 Slicer | x3 | -7/Factory Alien Tech Used ----------------- None Achievements -------------- More Dakka Please Challenges ------------ None Game ------ Seed FluxHardcellNullifier Manual? 0 Play Time 03:08:42 Cumulative 133.3 hours Start 2024.03.10 @ 01:31:58 End 2024.03.10 @ 04:44:01 Sessions 4 Manual Loads 0 Difficulty Rogue Special Mode None Game No. 71 Rogue 71 Adventurer 0 Explorer 0 Win Type - Total 0 Types 0/0/0/0/0/0/0/0/0 Lore% 56 Gallery% 59 Achievement% 52 Wizard Run 0 Options --------- Layout 0 ASCII 0 Keyboard 1 Movement Arrows Keybinds 0 Fullscreen 1 Font 12/Smallcaps Map View 83x54 Zoom Use 0% Tactical HUD 1 Map Filters NONE Filters NONE Steam 0 RUN: 5f0c7077-11ec-4be5-9f84-3e4fd968722c